fUST/lending_fUST_20250422
["ID","MTS","AMOUNT","RATE_DAILY","PERIOD"]
[358646189,1745334638051,-151.0,0.00021195,2]
[358646191,1745334638061,-151.0,0.00021195,2]
[358646193,1745334638071,-2370.51082082,0.00021353,2]
[358646195,1745334638081,-500.0,0.00021455,2]
[358646197,1745334638091,-500.0,0.00021663,2]
[358646199,1745334638102,-362.19133297,0.00021663,2]
[358646201,1745334638112,-157.1038495,0.00021671,2]
[358646203,1745334638122,-151.0,0.00021713,2]
[358646205,1745334638132,-151.0,0.00021713,2]
[358646206,1745334638145,-151.0,0.00021713,2]
[358646207,1745334638155,-151.0,0.00021717,2]
[358646209,1745334638165,-334.787569,0.00021873,2]
[358646210,1745334638175,-334.787569,0.00021873,2]
[358646212,1745334638186,-151.0,0.00021917,2]
[358646214,1745334638196,-151.0,0.00021917,2]
[358646216,1745334638206,-151.0,0.00021917,2]
[358646218,1745334638216,-500.0,0.00021917,2]
[358646219,1745334638226,-500.0,0.00021917,2]
[358646220,1745334638236,-334.787569,0.00021917,2]
[358646221,1745334638247,-334.787569,0.00021917,2]
[358646222,1745334638257,-500.0,0.00021917,2]
[358646224,1745334638269,-334.787569,0.00021917,2]
[358646226,1745334638278,-334.787569,0.00021917,2]
[358646228,1745334638288,-500.0,0.00021917,2]
[358646229,1745334638298,-254.44317118,0.00021917,2]
[358646230,1745334638308,-500.0,0.00021917,2]
[358646231,1745334638318,-500.0,0.00021917,2]
[358646232,1745334638328,-509.98331326,0.00021917,2]
[358646233,1745334638338,-500.0,0.00021917,2]
[358646234,1745334638348,-483.86289124,0.00021917,2]
[358646235,1745334638359,-500.0,0.00021917,2]
[358646236,1745334638370,-271.46329901,0.00021917,2]
[358646237,1745334638380,-500.0,0.00021917,2]
[358646238,1745334638390,-500.0,0.00021917,2]
[358646239,1745334638402,-535.14,0.00021917,2]
[358646240,1745334638412,-500.0,0.00021917,2]
[358646241,1745334638422,-500.0,0.00021917,2]
[358646242,1745334638432,-500.0,0.00021917,2]
[358646243,1745334638442,-500.0,0.00021917,2]
[358646244,1745334638452,-500.0,0.00021917,2]
[358646245,1745334638462,-584.44,0.00021917,2]
[358646246,1745334638472,-500.0,0.00021917,2]
[358646247,1745334638486,-500.0,0.00021917,2]
[358646248,1745334638497,-500.0,0.00021917,2]
[358646249,1745334638508,-500.0,0.00021917,2]
[358646250,1745334638518,-239.54659576,0.00021917,2]
[358646251,1745334638529,-519.12,0.00021917,2]
[358646252,1745334638538,-500.0,0.00021917,2]
[358646253,1745334638548,-500.0,0.00021917,2]
[358646254,1745334638558,-500.0,0.00021917,2]
[358646255,1745334638569,-500.0,0.00021917,2]
[358646256,1745334638582,-500.71100963,0.00021917,2]
[358646257,1745334638592,-500.0,0.00021917,2]
[358646258,1745334638602,-500.0,0.00021917,2]
[358646259,1745334638612,-500.0,0.00021917,2]
[358646260,1745334638622,-500.0,0.00021917,2]
[358646261,1745334638632,-500.0,0.00021917,2]
[358646262,1745334638644,-500.0,0.00021917,2]
[358646263,1745334638654,-500.0,0.00021917,2]
[358646264,1745334638665,-500.0,0.00021917,2]
[358646265,1745334638674,-500.0,0.00021917,2]
[358646266,1745334638685,-500.0,0.00021917,2]
[358646267,1745334638695,-500.0,0.00021917,2]
[358646268,1745334638844,-500.0,0.00021917,2]
[358646269,1745334638854,-500.0,0.00021917,2]
[358646270,1745334638865,-500.0,0.00021917,2]
[358646271,1745334638875,-500.0,0.00021917,2]
[358646272,1745334638886,-215.15714189,0.00021917,2]
[358646273,1745334638897,-500.0,0.00021917,2]
[358646274,1745334638908,-530.4393112,0.00021917,2]
[358646275,1745334638918,-500.0,0.00021917,2]
[358646276,1745334638928,-500.0,0.00021917,2]
[358646277,1745334638938,-500.0,0.00021917,2]
[358646278,1745334638948,-856.1,0.00021917,2]
[358646279,1745334638958,-500.0,0.00021917,2]
[358646280,1745334638967,-500.0,0.00021917,2]
[358646281,1745334638977,-535.06,0.00021917,2]
[358646282,1745334638988,-500.0,0.00021917,2]
[358646283,1745334638998,-500.0,0.00021917,2]
[358646284,1745334639008,-500.32266971,0.00021917,2]
[358646285,1745334639017,-500.0,0.00021917,2]
[358646286,1745334639027,-500.0,0.00021917,2]
[358646287,1745334639038,-500.0,0.00021917,2]
[358646288,1745334639048,-500.0,0.00021917,2]
[358646289,1745334639057,-506.34277989,0.00021917,2]
[358646290,1745334639067,-500.0,0.00021917,2]
[358646291,1745334639077,-500.0,0.00021917,2]
[358646292,1745334639086,-500.0,0.00021917,2]
[358646293,1745334639096,-500.82449963,0.00021917,2]
[358646294,1745334639105,-500.0,0.00021917,2]
[358646295,1745334639115,-500.0,0.00021917,2]
[358646296,1745334639125,-500.0,0.00021917,2]
[358646297,1745334639135,-501.60188421,0.00021917,2]
[358646298,1745334639148,-500.0,0.00021917,2]
[358646299,1745334639157,-672.1,0.00021917,2]
[358646300,1745334639167,-500.0,0.00021917,2]
[358646301,1745334639177,-500.0,0.00021917,2]
[358646302,1745334639186,-500.0,0.00021917,2]
[358646303,1745334639196,-500.0,0.00021917,2]
[358646304,1745334639206,-500.0,0.00021917,2]
[358646305,1745334639216,-3291.59,0.00021917,2]
[358646306,1745334639225,-500.0,0.00021917,2]
[358646307,1745334639236,-500.0,0.00021917,2]
[358646308,1745334639246,-500.0,0.00021917,2]
[358646309,1745334639256,-1353.78,0.00021917,2]
[358646310,1745334639265,-500.0,0.00021917,2]
[358646311,1745334639275,-500.0,0.00021917,2]
[358646312,1745334639284,-500.0,0.00021917,2]
[358646313,1745334639294,-634.74074739,0.00021917,2]
[358646314,1745334639303,-500.0,0.00021917,2]
[358646315,1745334639313,-500.0,0.00021917,2]
[358646316,1745334639322,-510.96,0.00021917,2]
[358646317,1745334639332,-500.0,0.00021917,2]
[358646318,1745334639342,-500.0,0.00021917,2]
[358646319,1745334639351,-500.0,0.00021917,2]
[358646320,1745334639361,-500.0,0.00021917,2]
[358646321,1745334639370,-500.0,0.00021917,2]
[358646322,1745334639379,-500.0,0.00021917,2]
[358646323,1745334639389,-500.0,0.00021917,2]
[358646324,1745334639401,-500.0,0.00021917,2]
[358646325,1745334639412,-633.84795498,0.00021917,2]
[358646326,1745334639422,-500.0,0.00021917,2]
[358646327,1745334639433,-500.0,0.00021917,2]
[358646328,1745334639444,-500.0,0.00021917,2]
[358646329,1745334639454,-3365.52,0.00021917,2]
[358646330,1745334639464,-504.28978164,0.00021917,2]
[358646331,1745334639474,-500.0,0.00021917,2]
[358646332,1745334639486,-500.0,0.00021917,2]
[358646333,1745334639496,-639.85714047,0.00021917,2]
[358646334,1745334639508,-500.0,0.00021917,2]
[358646335,1745334639518,-504.73077783,0.00021917,2]
[358646336,1745334639527,-500.0,0.00021917,2]
[358646337,1745334639537,-500.0,0.00021917,2]
[358646338,1745334639547,-500.0,0.00021917,2]
[358646339,1745334639556,-500.0,0.00021917,2]
[358646340,1745334639566,-500.0,0.00021917,2]
[358646341,1745334639579,-500.0,0.00021917,2]
[358646342,1745334639589,-500.0,0.00021917,2]
[358646343,1745334639599,-8479.44,0.00021917,2]
[358646344,1745334639610,-500.0,0.00021917,2]
[358646345,1745334639620,-500.0,0.00021917,2]
[358646346,1745334639630,-500.0,0.00021917,2]
[358646347,1745334639640,-500.0,0.00021917,2]
[358646348,1745334639651,-500.0,0.00021917,2]
[358646349,1745334639661,-506.86,0.00021917,2]
[358646350,1745334639671,-882.66853639,0.00021917,2]
[358646351,1745334639686,-1472.77146361,0.00021917,2]
[358646352,1745334639696,-500.0,0.00021917,2]
[358646353,1745334639705,-500.0,0.00021917,2]
[358646354,1745334639715,-500.0,0.00021917,2]
[358646355,1745334639724,-500.0,0.00021917,2]
[358646356,1745334639734,-500.0,0.00021917,2]
[358646357,1745334639744,-500.0,0.00021917,2]
[358646359,1745334639754,-540.25,0.00021917,2]
[358646361,1745334639763,-500.0,0.00021917,2]
[358646363,1745334639773,-500.0,0.00021917,2]
[358646365,1745334639783,-500.0,0.00021917,2]
[358646367,1745334639792,-500.0,0.00021917,2]
[358646369,1745334639802,-500.0,0.00021917,2]
[358646371,1745334639811,-500.0,0.00021917,2]
[358646372,1745334639821,-500.0,0.00021917,2]
[358646375,1745334639831,-534.5,0.00021917,2]
[358646376,1745334639840,-500.0,0.00021917,2]
[358646378,1745334639850,-505.22127712,0.00021917,2]
[358646380,1745334639860,-500.0,0.00021917,2]
[358646381,1745334639870,-500.0,0.00021917,2]
[358646383,1745334639880,-500.0,0.00021917,2]
[358646385,1745334639889,-500.0,0.00021917,2]
[358646386,1745334639902,-500.0,0.00021917,2]
[358646388,1745334639912,-500.0,0.00021917,2]
[358646389,1745334639922,-500.0,0.00021917,2]
[358646391,1745334639931,-500.0,0.00021917,2]
[358646393,1745334639941,-500.0,0.00021917,2]
[358646394,1745334639951,-500.0,0.00021917,2]
[358646396,1745334639961,-500.0,0.00021917,2]
[358646398,1745334639971,-500.0,0.00021917,2]
[358646399,1745334639981,-500.0,0.00021917,2]
[358646400,1745334639990,-500.0,0.00021917,2]
[358646401,1745334640000,-521.5793043,0.00021917,2]
[358646402,1745334640010,-500.0,0.00021917,2]
[358646403,1745334640020,-500.0,0.00021917,2]
[358646404,1745334640029,-1304.33,0.00021917,2]
[358646405,1745334640039,-2433.23,0.00021917,2]
[358646406,1745334640048,-500.0,0.00021917,2]
[358646407,1745334640057,-3000.0,0.00021917,2]
[358646408,1745334640067,-3000.0,0.00021917,2]
[358646409,1745334640076,-3000.0,0.00021917,2]
[358646410,1745334640086,-3000.0,0.00021917,2]
[358646411,1745334640095,-3000.0,0.00021917,2]
[358646412,1745334640105,-3000.0,0.00021917,2]
[358646413,1745334640115,-500.0,0.00021917,2]
[358646414,1745334640124,-3000.0,0.00021917,2]
[358646416,1745334640134,-3000.0,0.00021917,2]
[358646418,1745334640145,-3000.0,0.00021917,2]
[358646420,1745334640154,-3000.0,0.00021917,2]
[358646422,1745334640164,-500.0,0.00021917,2]
[358646423,1745334640173,-3000.0,0.00021917,2]
[358646425,1745334640183,-500.0,0.00021917,2]
[358646426,1745334640193,-3000.0,0.00021917,2]
[358646427,1745334640203,-3000.0,0.00021917,2]
[358646428,1745334640212,-500.0,0.00021917,2]
[358646429,1745334640222,-3000.0,0.00021917,2]
[358646430,1745334640232,-3000.0,0.00021917,2]
[358646431,1745334640242,-2572.441499,0.00021917,2]
[358646432,1745334640252,-361.72854456,0.00021917,2]
[358646433,1745334640262,-500.0,0.00021917,2]
[358646434,1745334640271,-500.0,0.00021917,2]
[358646435,1745334640281,-500.0,0.00021917,2]
[358646436,1745334640290,-501.31299266,0.00021917,2]
[358646437,1745334640300,-500.0,0.00021917,2]
[358646438,1745334640310,-500.0,0.00021917,2]
[358646439,1745334640320,-500.0,0.00021917,2]
[358646440,1745334640330,-500.0,0.00021917,2]
[358646441,1745334640339,-500.0,0.00021917,2]
[358646442,1745334640349,-500.0,0.00021917,2]
[358646443,1745334640358,-500.0,0.00021917,2]
[358646444,1745334640368,-500.0,0.00021917,2]
[358646445,1745334640378,-500.0,0.00021917,2]
[358646446,1745334640388,-500.0,0.00021917,2]
[358646447,1745334640400,-500.0,0.00021917,2]
[358646448,1745334640410,-500.0,0.00021917,2]
[358646449,1745334640420,-1220.55,0.00021917,2]
[358646451,1745334640430,-500.0,0.00021917,2]
[358646452,1745334640440,-500.0,0.00021917,2]
[358646453,1745334640450,-500.0,0.00021917,2]
[358646454,1745334640460,-500.0,0.00021917,2]
[358646455,1745334640471,-500.0,0.00021917,2]
[358646456,1745334640481,-500.0,0.00021917,2]
[358646457,1745334640492,-500.0,0.00021917,2]
[358646458,1745334640505,-500.0,0.00021917,2]
[358646459,1745334640515,-500.0,0.00021917,2]
[358646460,1745334640524,-500.0,0.00021917,2]
[358646461,1745334640535,-500.0,0.00021917,2]
[358646462,1745334640545,-500.0,0.00021917,2]
[358646463,1745334640554,-1579.47,0.00021917,2]
[358646464,1745334640564,-500.0,0.00021917,2]
[358646465,1745334640574,-500.0,0.00021917,2]
[358646467,1745334640585,-500.0,0.00021917,2]
[358646469,1745334640595,-500.0,0.00021917,2]
[358646471,1745334640605,-500.0,0.00021917,2]
[358646472,1745334640615,-500.0,0.00021917,2]
[358646473,1745334640625,-500.0,0.00021917,2]
[358646474,1745334640636,-554.32,0.00021917,2]
[358646475,1745334640650,-4450.75,0.00021917,2]
[358646476,1745334640661,-500.0,0.00021917,2]
[358646477,1745334640671,-500.0,0.00021917,2]
[358646478,1745334640682,-500.0,0.00021917,2]
[358646479,1745334640692,-500.0,0.00021917,2]
[358646480,1745334640702,-510.29906048,0.00021917,2]
[358646481,1745334640712,-500.0,0.00021917,2]
[358646482,1745334640723,-516.69,0.00021917,2]
[358646483,1745334640732,-500.0,0.00021917,2]
[358646484,1745334640741,-543.44140338,0.00021917,2]
[358646485,1745334640752,-826.79,0.00021917,2]
[358646486,1745334640762,-500.0,0.00021917,2]
[358646487,1745334640772,-500.0,0.00021917,2]
[358646488,1745334640782,-500.24954441,0.00021917,2]
[358646489,1745334640794,-166.0,0.00021918,2]
[358646490,1745334640805,-189.331331,0.00021918,2]
[358646491,1745334640814,-500.0,0.00021918,2]
[358646492,1745334640824,-151.0,0.00021918,2]
[358646493,1745334640834,-301.20831435,0.00021918,2]
[358646494,1745334640844,-151.0,0.00021918,2]
[358646495,1745334640854,-151.0,0.00021918,2]
[358646496,1745334640863,-151.0,0.00021918,2]
[358646497,1745334640873,-151.0,0.00021918,2]
[358646498,1745334640882,-151.0,0.00021918,2]
[358646499,1745334640893,-151.0,0.00021918,2]
[358646500,1745334640907,-151.0,0.00021918,2]
[358646501,1745334640917,-284.107809,0.00021918,2]
[358646502,1745334640927,-151.0,0.00021918,2]
[358646503,1745334640937,-151.0,0.00021918,2]
[358646504,1745334640946,-151.0,0.00021918,2]
[358646505,1745334640956,-195.0893801,0.00021918,2]
[358646506,1745334640966,-500.0,0.00021918,2]
[358646507,1745334640976,-151.0,0.00021918,2]
[358646508,1745334640985,-500.0,0.00021918,2]
[358646509,1745334640995,-151.21528429,0.00021918,2]
[358646510,1745334641005,-7039.25878028,0.00021969,2]
[358646511,1745334641015,-500.0,0.00021997,2]
[358646512,1745334641025,-152.0,0.00022,2]
[358646513,1745334641035,-155.0,0.00022,2]
[358646514,1745334641045,-328.58736752,0.00022017,2]
[358646515,1745334641054,-500.0,0.00022057,2]
[358646516,1745334641064,-501.1063021,0.00022057,2]
[358646517,1745334641073,-500.0,0.00022057,2]
[358646518,1745334641083,-500.0,0.00022057,2]
[358646519,1745334641092,-500.0,0.00022057,2]
[358646520,1745334641103,-500.0,0.00022057,2]
[358646521,1745334641112,-500.73834366,0.00022057,2]
[358646522,1745334641122,-500.0,0.00022125,2]
[358646523,1745334641132,-500.0,0.00022125,2]
[358646524,1745334641142,-500.0,0.00022125,2]
[358646525,1745334641155,-500.0,0.00022125,2]
[358646526,1745334641165,-12570.97479393,0.00022184,2]
[358646527,1745334641174,-160.0,0.00022184,2]
[358646528,1745334641184,-420.73667954,0.00022184,2]
[358646529,1745334641194,-151.0,0.00022191,7]
[358646530,1745334641203,-334.787569,0.00022191,2]
[358646531,1745334641214,-334.787569,0.00022191,2]
[358646532,1745334641224,-500.0,0.00022191,2]
[358646533,1745334641234,-500.0,0.00022191,2]
[358646534,1745334641244,-500.0,0.00022191,2]
[358646535,1745334641254,-500.0,0.00022191,2]
[358646536,1745334641264,-500.0,0.00022191,2]
[358646537,1745334641275,-535.14,0.00022191,2]
[358646538,1745334641284,-175.37,0.00022191,2]
[358646539,1745334641294,-500.0,0.00022191,2]
[358646540,1745334641304,-500.0,0.00022191,2]
[358646541,1745334641314,-500.0,0.00022191,2]
[358646542,1745334641324,-500.0,0.00022191,2]
[358646543,1745334641334,-584.44,0.00022191,2]
[358646544,1745334641344,-500.0,0.00022191,2]
[358646545,1745334641354,-500.0,0.00022191,2]
[358646546,1745334641364,-519.12,0.00022191,2]
[358646547,1745334641374,-500.0,0.00022191,2]
[358646548,1745334641384,-500.0,0.00022191,2]
[358646549,1745334641395,-500.0,0.00022191,2]
[358646550,1745334641405,-560.1365621,0.00022191,2]
[358646551,1745334641415,-500.0,0.00022191,2]
[358646552,1745334641425,-500.0,0.00022191,2]
[358646553,1745334641434,-856.1,0.00022191,2]
[358646554,1745334641444,-500.0,0.00022191,2]
[358646555,1745334641455,-535.06,0.00022191,2]
[358646556,1745334641464,-500.0,0.00022191,2]
[358646557,1745334641474,-500.0,0.00022191,2]
[358646558,1745334641485,-500.0,0.00022191,2]
[358646559,1745334641498,-500.0,0.00022191,2]
[358646560,1745334641508,-240.98,0.00022191,2]
[358646561,1745334641518,-500.0,0.00022191,2]
[358646562,1745334641531,-510.65501489,0.00022191,2]
[358646563,1745334641541,-500.0,0.00022191,2]
[358646564,1745334641551,-672.1,0.00022191,2]
[358646565,1745334641560,-236.84519714,0.00022191,2]
[358646566,1745334641570,-500.0,0.00022191,2]
[358646567,1745334641581,-500.0,0.00022191,2]
[358646568,1745334641591,-500.0,0.00022191,2]
[358646569,1745334641602,-3291.59,0.00022191,2]
[358646570,1745334641612,-402.96631046,0.00022191,2]
[358646571,1745334641622,-500.0,0.00022191,2]
[358646572,1745334641632,-1353.78,0.00022191,2]
[358646573,1745334641641,-500.0,0.00022191,2]
[358646574,1745334641653,-500.0,0.00022191,2]
[358646575,1745334641663,-510.96,0.00022191,2]
[358646576,1745334641673,-500.0,0.00022191,2]
[358646577,1745334641684,-500.0,0.00022191,2]
[358646578,1745334641695,-500.0,0.00022191,2]
[358646579,1745334641705,-3365.52,0.00022191,2]
[358646580,1745334641716,-515.51396382,0.00022191,2]
[358646581,1745334641726,-500.0,0.00022191,2]
[358646582,1745334641736,-500.0,0.00022191,2]
[358646583,1745334641747,-500.0,0.00022191,2]
[358646584,1745334641756,-500.0,0.00022191,2]
[358646585,1745334641766,-500.0,0.00022191,2]
[358646586,1745334641776,-500.0,0.00022191,2]
[358646587,1745334641786,-8479.44,0.00022191,2]
[358646588,1745334641796,-500.0,0.00022191,2]
[358646589,1745334641807,-500.0,0.00022191,2]
[358646590,1745334641817,-500.0,0.00022191,2]
[358646591,1745334641827,-500.0,0.00022191,2]
[358646592,1745334641837,-506.86,0.00022191,2]
[358646593,1745334641847,-2355.44,0.00022191,2]
[358646594,1745334641857,-500.0,0.00022191,2]
[358646595,1745334641867,-500.0,0.00022191,2]
[358646596,1745334641877,-500.0,0.00022191,2]
[358646597,1745334641887,-500.0,0.00022191,2]
[358646598,1745334641900,-500.0,0.00022191,2]
[358646599,1745334641910,-540.25,0.00022191,2]
[358646600,1745334641919,-500.0,0.00022191,2]
[358646601,1745334642061,-500.0,0.00022191,2]
[358646602,1745334642072,-500.0,0.00022191,2]
[358646603,1745334642082,-500.0,0.00022191,2]
[358646604,1745334642092,-500.0,0.00022191,2]
[358646605,1745334642102,-500.0,0.00022191,2]
[358646606,1745334642112,-534.5,0.00022191,2]
[358646607,1745334642123,-500.0,0.00022191,2]
[358646608,1745334642132,-500.0,0.00022191,2]
[358646609,1745334642142,-500.0,0.00022191,2]
[358646610,1745334642155,-500.0,0.00022191,2]
[358646611,1745334642165,-500.0,0.00022191,2]
[358646612,1745334642175,-264.85450772,0.00022191,2]
[358646613,1745334642186,-277.99723843,0.00022191,2]
[358646614,1745334642197,-1304.33,0.00022191,2]
[358646615,1745334642207,-2433.23,0.00022191,2]
[358646616,1745334642218,-500.0,0.00022191,2]
[358646617,1745334642228,-500.0,0.00022191,2]
[358646618,1745334642237,-182.50316974,0.00022191,2]
[358646619,1745334642247,-500.0,0.00022191,2]
[358646620,1745334642256,-500.0,0.00022191,2]
[358646621,1745334642266,-500.0,0.00022191,2]
[358646622,1745334642276,-500.0,0.00022191,2]
[358646623,1745334642286,-500.0,0.00022191,2]
[358646624,1745334642296,-500.0,0.00022191,2]
[358646625,1745334642305,-500.0,0.00022191,2]
[358646626,1745334642315,-500.0,0.00022191,2]
[358646627,1745334642325,-1220.55,0.00022191,2]
[358646628,1745334642335,-500.0,0.00022191,2]
[358646629,1745334642344,-500.0,0.00022191,2]
[358646630,1745334642354,-500.0,0.00022191,2]
[358646631,1745334642364,-1579.47,0.00022191,2]
[358646632,1745334642373,-500.0,0.00022191,2]
[358646633,1745334642383,-500.0,0.00022191,2]
[358646634,1745334642392,-500.0,0.00022191,2]
[358646635,1745334642406,-500.0,0.00022191,2]
[358646636,1745334642416,-554.32,0.00022191,2]
[358646637,1745334642425,-3441.59461593,0.00022191,2]
[358646638,1745334642544,-1009.15538407,0.00022191,2]
[358646639,1745334642555,-500.0,0.00022191,2]
[358646640,1745334642565,-516.69,0.00022191,2]
[358646642,1745334642579,-223.75603367,0.00022191,2]
[358646643,1745334642677,-844.28047565,0.00020904,2]
[358646644,1745334642688,-5.42202829,0.00020904,2]
[358646646,1745334642700,-838.85844736,0.00020904,2]
[358646648,1745334642711,-637.99584154,0.00020904,2]
[358646649,1745334642723,-206.28463411,0.00020904,2]
[358646652,1745334642734,-844.28047565,0.00020904,2]
[358646654,1745334642744,-500.0,0.00021917,2]
[358646655,1745334642754,-500.0,0.00021917,2]
[358646657,1745334642765,-500.0,0.00021917,2]
[358646661,1745334642775,-276.24396633,0.00022191,2]
[358646663,1745334642786,-826.79,0.00022191,2]
[358646665,1745334642796,-500.0,0.00022191,2]
[358646666,1745334642807,-500.0,0.00022191,2]
[358646668,1745334642819,-361.3304114,0.00022212,2]
[358646669,1745334642830,-18235.8,0.00022267,3]
[358646671,1745334642840,-7132.88013021,0.00022267,3]
[358646674,1745334642852,-1985.01986979,0.00022267,3]
[358646677,1745334642862,-4558.96,0.00022267,3]
[358646678,1745334642873,-500.0,0.00022284,2]
[358646680,1745334642883,-500.0,0.00022284,2]
[358646681,1745334642892,-334.787569,0.00022465,2]
[358646683,1745334642905,-334.787569,0.00022465,2]
[358646685,1745334642915,-500.0,0.00022465,2]
[358646686,1745334642925,-500.0,0.00022465,2]
[358646687,1745334642935,-500.0,0.00022465,2]
[358646688,1745334642945,-500.0,0.00022465,2]
[358646689,1745334642955,-240.88,0.00022465,2]
[358646690,1745334642965,-535.14,0.00022465,2]
[358646691,1745334642976,-500.0,0.00022465,2]
[358646692,1745334642986,-500.0,0.00022465,2]
[358646693,1745334642996,-500.0,0.00022465,2]
[358646694,1745334643006,-500.0,0.00022465,2]
[358646695,1745334643016,-584.44,0.00022465,2]
[358646696,1745334643026,-439.88509331,0.00022465,2]
[358646697,1745334643035,-500.0,0.00022465,2]
[358646698,1745334643045,-519.12,0.00022465,2]
[358646699,1745334643055,-500.0,0.00022465,2]
[358646700,1745334643065,-856.1,0.00022465,2]
[358646701,1745334643074,-500.0,0.00022465,2]
[358646702,1745334643084,-535.06,0.00022465,2]
[358646703,1745334643093,-500.0,0.00022465,2]
[358646704,1745334643103,-500.0,0.00022465,2]
[358646705,1745334643112,-178.23758236,0.00022465,2]
[358646706,1745334643122,-500.0,0.00022465,2]
[358646707,1745334643131,-672.1,0.00022465,2]
[358646708,1745334643140,-500.0,0.00022465,2]
[358646709,1745334643151,-500.0,0.00022465,2]
[358646710,1745334643161,-500.0,0.00022465,2]
[358646711,1745334643171,-3291.59,0.00022465,2]
[358646712,1745334643180,-1353.78,0.00022465,2]
[358646713,1745334643190,-510.96,0.00022465,2]
[358646714,1745334643201,-505.84,0.00022465,2]
[358646715,1745334643211,-500.0,0.00022465,2]
[358646716,1745334643221,-3365.52,0.00022465,2]
[358646717,1745334643231,-500.0,0.00022465,2]
[358646718,1745334643241,-500.0,0.00022465,2]
[358646719,1745334643251,-500.0,0.00022465,2]
[358646721,1745334643260,-8479.44,0.00022465,2]
[358646722,1745334643270,-500.0,0.00022465,2]
[358646724,1745334643280,-500.0,0.00022465,2]
[358646726,1745334643289,-385.83593172,0.00022465,2]
[358646728,1745334643300,-506.86,0.00022465,2]
[358646729,1745334643309,-2355.44,0.00022465,2]
[358646730,1745334643320,-500.0,0.00022465,2]
[358646732,1745334643331,-500.0,0.00022465,2]
[358646733,1745334643341,-500.0,0.00022465,2]
[358646734,1745334643352,-500.0,0.00022465,2]
[358646735,1745334643362,-540.25,0.00022465,2]
[358646736,1745334643373,-500.0,0.00022465,2]
[358646737,1745334643384,-500.0,0.00022465,2]
[358646738,1745334643397,-551.84,0.00022465,2]
[358646739,1745334643406,-534.5,0.00022465,2]
[358646740,1745334643416,-500.0,0.00022465,2]
[358646742,1745334643426,-500.0,0.00022465,2]
[358646743,1745334643435,-500.0,0.00022465,2]
[358646745,1745334643445,-500.0,0.00022465,2]
[358646747,1745334643455,-500.0,0.00022465,2]
[358646749,1745334643465,-1304.33,0.00022465,2]
[358646751,1745334643475,-2433.23,0.00022465,2]
[358646753,1745334643487,-500.0,0.00022465,2]
[358646756,1745334643499,-500.0,0.00022465,2]
[358646758,1745334643508,-500.0,0.00022465,2]
[358646760,1745334643520,-500.0,0.00022465,2]
[358646762,1745334643531,-500.0,0.00022465,2]
[358646764,1745334643540,-500.0,0.00022465,2]
[358646766,1745334643549,-500.0,0.00022465,2]
[358646767,1745334643559,-1220.55,0.00022465,2]
[358646769,1745334643572,-500.0,0.00022465,2]
[358646771,1745334643582,-1579.47,0.00022465,2]
[358646773,1745334643592,-500.0,0.00022465,2]